bitfinex/quotes_SOLUSD_20260113
["timestamp","ask_amount","ask_price","bid_price","bid_amount"]
[1768329720715,0.71178805,143.09,143.05,0.68407531]
[1768329721018,0.71178805,143.09,143.05,2.93649965]
[1768329721441,6.98777245,143.11,143.07,0.68407531]
[1768329722030,0.44965365,143.1,143.06,9.92619059]
[1768329722208,12.74,143.12,143.06,2.25242434]
[1768329722414,0.44965365,143.11,143.07,9.92600219]
[1768329726536,0.44965365,143.11,143.07,2.25242434]
[1768329726915,12.74,143.12,143.08,0.67656307]
[1768329727112,12.74,143.12,143.08,2.92898741]
[1768329727113,13.19486577,143.12,143.08,2.92898741]
[1768329727308,9.23858617,143.15,143.09,0.67656307]
[1768329727539,20.1810276,143.15,143.11,0.67656307]
[1768329728215,22.43345194,143.15,143.11,0.67656307]
[1768329728410,12.74,143.15,143.12,0.67656307]
[1768329728635,12.74,143.15,143.13,0.67656307]
[1768329729150,12.74,143.15,143.12,0.67656307]
[1768329729552,12.74,143.15,143.13,0.67656307]
[1768329732938,19.7257423,143.15,143.12,0.67656307]
[1768329733241,20.43237035,143.15,143.11,0.67656307]
[1768329735045,0.45738339,143.14,143.1,2.25242434]
[1768329735346,0.45738339,143.14,143.09,7.66509272]
[1768329735549,0.45738339,143.14,143.1,2.25242434]
[1768329736046,0.7041356,143.13,143.09,0.67656307]
[1768329736248,0.7041356,143.13,143.09,7.66516246]
[1768329736449,0.7041356,143.13,143.09,0.67656307]
[1768329737142,2.95655994,143.13,143.09,0.67656307]
[1768329737538,0.45985092,143.12,143.09,0.67656307]
[1768329737746,0.70169275,143.11,143.07,0.69814557]
[1768329738332,13.45602914,143.12,143.08,2.95056991]
[1768329739031,0.44807631,143.11,143.08,0.69814557]
[1768329739226,0.44807631,143.11,143.07,2.95056991]
[1768329739425,0.44807631,143.11,143.07,9.93992663]
[1768329740952,13.45602914,143.12,143.08,0.69814557]
[1768329741448,0.44807631,143.11,143.08,0.69814557]
[1768329741750,13.45602914,143.12,143.08,0.69814557]
[1768329742830,12.74,143.12,143.09,0.69814557]
[1768329745138,0.71602914,143.15,143.11,0.69814557]
[1768329745340,34.37733072,143.3,143.12,0.69814557]
[1768329745341,7.70150382,143.16,143.12,0.69814557]
[1768329745545,6.98547468,143.16,143.12,0.69814557]
[1768329745848,9.95124863,143.16,143.12,0.69814557]
[1768329746658,7.69882429,143.16,143.12,0.69814557]
[1768329751562,7.70090049,143.17,143.13,0.69814557]
[1768329751868,17.66003922,143.19,143.16,0.69814557]
[1768329751869,0.2,143.19,143.16,0.69814557]
[1768329752156,0.45072905,143.18,143.15,0.69814557]
[1768329752336,7.18385049,143.19,143.15,0.69814557]
[1768329752536,7.6319268,143.19,143.15,2.95056991]
[1768329752742,0.2,143.19,143.16,0.69814557]
[1768329753350,7.18374027,143.19,143.16,0.69814557]
[1768329754755,0.2,143.19,143.16,0.69814557]
[1768329754953,0.88094806,143.19,143.16,0.69814557]
[1768329755964,0.2,143.19,143.16,0.69814557]
[1768329756337,0.68094806,143.18,143.14,20.4145519]
[1768329756565,7.86678206,143.19,143.15,0.68845706]
[1768329756957,0.48080515,143.18,143.13,9.92742014]
[1768329757157,0.48080515,143.18,143.14,0.68845706]
[1768329758467,9.43623669,143.19,143.14,0.68845706]
[1768329758468,0.2,143.19,143.15,0.68845706]
[1768329758636,0.2,143.19,143.16,0.68845706]
[1768329761061,0.2,143.19,143.16,7.67356852]
[1768329761848,0.2,143.19,143.16,0.68845706]
[1768329762164,0.2,143.19,143.16,7.67357338]
[1768329763436,0.2,143.19,143.16,6.98511632]
[1768329763641,20.40491355,143.23,143.17,0.68845706]
[1768329763868,0.67880515,143.22,143.17,0.68845706]
[1768329764462,2.93122949,143.22,143.17,0.68845706]
[1768329764972,9.91377898,143.22,143.18,0.68845706]
[1768329765781,0.67880515,143.22,143.18,0.68845706]
[1768329765988,9.91682925,143.24,143.18,0.68845706]
[1768329766267,9.91682925,143.24,143.2,0.68845706]
[1768329766457,0.67880515,143.23,143.19,0.68845706]
[1768329766782,0.67880515,143.23,143.19,7.67212662]
[1768329767862,0.68296971,143.24,143.2,0.68845706]
[1768329768361,0.68296971,143.24,143.19,9.2360939]
[1768329768583,0.68296971,143.24,143.19,9.92455096]
[1768329768790,7.66437884,143.24,143.2,0.68845706]
[1768329769095,7.66021428,143.24,143.2,0.68845706]
[1768329769297,9.91263862,143.24,143.2,0.68845706]
[1768329769801,2.25242434,143.23,143.2,0.68845706]
[1768329770000,9.91263862,143.24,143.2,0.68845706]
[1768329770700,7.66021428,143.24,143.2,0.68845706]
[1768329770997,9.91263862,143.24,143.2,0.68845706]
[1768329771601,0.68292806,143.23,143.19,0.68845706]
[1768329771975,9.91739329,143.23,143.19,0.68845706]
[1768329772474,9.23446523,143.23,143.19,0.68845706]
[1768329772800,0.67880515,143.22,143.19,6.98366144]
[1768329774475,0.68296971,143.24,143.2,0.68845706]
[1768329775084,0.67880515,143.23,143.19,6.98366144]
[1768329775492,0.67880515,143.23,143.19,7.6721185]
[1768329775818,0.67880515,143.24,143.2,0.68845706]
[1768329776020,2.93122949,143.24,143.2,0.68845706]
[1768329776379,0.67884638,143.22,143.19,0.68845706]
[1768329776987,6.98177756,143.23,143.2,0.68845706]
[1768329777193,7.6644373,143.24,143.2,0.68845706]
[1768329777387,0.68296971,143.24,143.21,0.68845706]
[1768329777577,0.68296971,143.24,143.2,6.98321626]
[1768329777780,0.68296971,143.24,143.21,0.68845706]
[1768329778187,11.1729736,143.24,143.2,7.67160916]
[1768329779090,0.68296971,143.24,143.2,7.67160916]
[1768329779291,4.19164724,143.24,143.2,7.67160916]
[1768329780482,11.17310278,143.24,143.2,7.67160916]
[1768329780683,11.17310278,143.24,143.18,20.96861771]
[1768329780684,0.68292806,143.22,143.19,6.98364384]
[1768329781008,0.68292806,143.22,143.19,0.68845706]
[1768329781393,0.68296971,143.23,143.19,7.67206828]
[1768329781696,0.68296971,143.23,143.19,6.98361122]
[1768329782308,0.67880515,143.22,143.19,6.98361122]
[1768329784405,11.17344092,143.23,143.19,7.67206828]
[1768329784591,4.18748268,143.22,143.18,7.67261957]
[1768329784904,6.98179368,143.23,143.15,17.46345353]
[1768329784905,0.67884638,143.2,143.16,7.67335089]
[1768329785108,4.18752391,143.2,143.17,0.70437972]
[1768329785593,0.67884638,143.2,143.17,0.70437972]
[1768329785784,0.67884638,143.2,143.16,6.98489383]
[1768329785980,0.66629778,143.17,143.12,3.50867753]
[1768329786200,0.66629778,143.17,143.13,0.70437972]
[1768329786393,7.65101725,143.17,143.13,7.69082129]
[1768329786600,11.15969478,143.17,143.13,0.70437972]
[1768329786991,11.15969478,143.17,143.13,7.69103132]
[1768329787514,7.65101725,143.17,143.13,7.69103132]
[1768329787818,11.15969478,143.17,143.13,7.69103132]
[1768329787988,4.17497531,143.17,143.13,7.69103132]
[1768329788309,0.66629778,143.17,143.14,0.70437972]
[1768329788509,3.50867753,143.19,143.16,0.70437972]
[1768329788893,0.66629778,143.19,143.16,0.70437972]
[1768329789106,4.17497531,143.19,143.16,0.70437972]
[1768329789305,4.17497531,143.19,143.15,7.69005907]
[1768329789486,11.15876768,143.19,143.15,0.70437972]
[1768329790011,4.17497531,143.17,143.13,7.69084064]
[1768329791094,4.17497531,143.16,143.13,0.70437972]
[1768329791497,4.17497531,143.15,143.12,0.70437972]
[1768329791918,0.66629778,143.15,143.12,0.70437972]
[1768329792318,0.66629778,143.15,143.12,7.69150817]
[1768329793014,0.66629778,143.15,143.12,0.70437972]
[1768329793214,4.17497531,143.14,143.09,0.70437972]
[1768329793397,0.66629778,143.14,143.1,0.70437972]
[1768329793598,4.17497531,143.14,143.1,7.6921879]
[1768329793995,4.17497531,143.14,143.11,0.70437972]
[1768329794398,3.50867753,143.14,143.12,0.70437972]
[1768329794602,3.50867753,143.15,143.12,0.70437972]
[1768329794800,0.66629778,143.16,143.12,7.69143884]
[1768329795005,4.17497531,143.16,143.12,7.69143884]
[1768329795719,0.66629778,143.15,143.12,7.69143884]
[1768329797511,0.66629778,143.15,143.12,0.70910056]
[1768329797915,11.16074738,143.15,143.12,0.70910056]
[1768329798218,4.16522763,143.14,143.1,7.69706886]
[1768329798597,4.16522763,143.13,143.1,0.70910056]
[1768329798928,3.50867753,143.13,143.1,0.70910056]
[1768329799127,3.50867753,143.14,143.1,0.70910056]
[1768329799828,7.64232217,143.15,143.1,7.69697344]
[1768329800137,4.16522763,143.14,143.1,0.70910056]
[1768329800929,3.50867753,143.13,143.1,0.70910056]
[1768329803709,3.50867753,143.13,143.1,7.69715307]
[1768329804025,11.15141206,143.14,143.1,7.69715307]
[1768329805122,11.15141206,143.14,143.1,0.70910056]
[1768329805533,0.6565501,143.14,143.1,0.70910056]
[1768329805830,17.46344713,143.16,143.11,0.70910056]
[1768329805831,11.15135683,143.15,143.11,0.70910056]
[1768329806725,0.6565501,143.14,143.1,6.98805277]
[1768329807114,0.6565501,143.13,143.09,7.69749931]
[1768329807512,0.6565501,143.12,143.08,20.43801043]
[1768329807729,4.16522763,143.12,143.08,0.70910056]
[1768329808338,4.16522763,143.12,143.08,7.69808115]
[1768329808713,0.6565501,143.11,143.08,0.70910056]
[1768329810913,0.6565501,143.11,143.08,7.69803719]
[1768329811431,11.15268372,143.12,143.08,7.69803719]
[1768329812543,3.50867753,143.1,143.07,0.70910056]
[1768329812740,4.16522763,143.11,143.07,0.70910056]
[1768329812928,6.98745609,143.12,143.08,0.70910056]
[1768329813237,11.15268372,143.12,143.08,0.70910056]
[1768329814237,0.6565501,143.11,143.08,0.70910056]
[1768329814843,17.46541847,143.14,143.08,0.70910056]
[1768329814844,0.6710065,143.13,143.08,7.69816757]
[1768329815138,0.6710065,143.11,143.08,7.68492428]
[1768329815337,0.6710065,143.12,143.09,0.69585727]
[1768329815640,4.17968403,143.12,143.09,0.69585727]
[1768329816345,4.17968403,143.12,143.08,0.69585727]
[1768329816530,4.17968403,143.11,143.08,0.69585727]
[1768329817220,11.16744765,143.11,143.07,0.69585727]
[1768329818940,0.6710065,143.11,143.08,0.69585727]
[1768329819243,0.6710065,143.12,143.08,0.69585727]
[1768329821727,0.6710065,143.12,143.08,7.68477289]
[1768329822852,11.16653619,143.13,143.09,0.69585727]
[1768329823149,0.6710065,143.12,143.09,0.69585727]
[1768329823833,7.65850224,143.12,143.08,0.69585727]
[1768329824029,3.50867753,143.1,143.06,15.260481]
[1768329824235,0.6710065,143.09,143.06,15.260481]
[1768329825226,0.6710065,143.1,143.07,0.69585727]
[1768329826047,11.16747859,143.11,143.07,0.69585727]
[1768329828248,0.6710065,143.1,143.07,0.69585727]
[1768329828843,0.6710065,143.1,143.06,15.260481]
[1768329829047,6.98823182,143.1,143.07,0.69585727]
[1768329829232,7.6588671,143.11,143.07,0.69585727]
[1768329830664,0.6710065,143.1,143.07,0.69585727]
[1768329830955,0.64100651,143.1,143.07,0.69585727]
[1768329831638,0.64100651,143.1,143.06,15.26061786]
[1768329832150,6.98815518,143.1,143.06,7.57473609]
[1768329832328,6.98815518,143.1,143.03,0.79585727]
[1768329832329,3.50867753,143.07,143.03,0.79585727]
[1768329832645,3.50867753,143.06,143.03,0.1]
[1768329833941,6.99056274,143.05,143.03,0.1]
[1768329834140,10.49924027,143.05,143.03,0.1]
[1768329834447,3.50867753,143.04,143.03,1e-08]
[1768329836334,10.49924027,143.05,143.03,1e-08]
[1768329837254,3.50867753,143.04,143.03,1e-08]
[1768329837455,2.25180933,143.04,143.0,6.99299939]
[1768329837656,2.25180933,143.04,142.99,0.79585727]
[1768329837855,2.25180933,143.01,142.99,0.1]
[1768329838355,9.24432168,143.02,142.99,0.1]
[1768329840135,6.99170271,143.03,142.99,0.79585727]
[1768329840336,6.99117801,143.04,143.0,0.69585727]
[1768329840643,19.73061074,143.05,143.0,0.69585727]
[1768329840956,17.37625562,143.16,143.04,0.69585727]
[1768329840957,6.98714365,143.12,143.04,0.69585727]
[1768329841143,2.25180933,143.09,143.04,0.69585727]
[1768329841859,19.72714365,143.12,143.04,2.9476666]
[1768329842065,37.19500278,143.12,143.07,0.69585727]
[1768329842254,39.44681211,143.12,143.07,0.69585727]
[1768329842555,19.72714365,143.12,143.08,0.69585727]
[1768329842761,6.98697309,143.13,143.09,2.25180933]
[1768329842964,2.25180933,143.12,143.07,0.69585727]
[1768329843549,24.45361181,143.13,143.07,0.69585727]
[1768329843745,24.45361181,143.13,143.08,0.69585727]
[1768329843746,26.70542114,143.13,143.08,0.69585727]
[1768329844040,39.44542114,143.13,143.08,0.69585727]
[1768329844352,37.19361181,143.13,143.08,0.69585727]
[1768329844554,12.74,143.13,143.1,0.69585727]
[1768329844757,12.71000001,143.13,143.1,0.69585727]
[1768329844946,6.98672514,143.13,143.1,0.69585727]
[1768329845962,9.23853447,143.13,143.07,0.66377388]
[1768329846263,6.98672514,143.13,143.09,0.66377388]
[1768329848548,6.98620298,143.14,143.11,0.66377388]
[1768329848871,6.98577795,143.15,143.12,0.66377388]
[1768329852666,6.98577795,143.15,143.1,0.66377388]
[1768329852869,6.98577795,143.15,143.1,2.91558321]
[1768329853254,9.23758728,143.15,143.1,0.66377388]
[1768329853568,6.98577795,143.15,143.1,2.91558321]
[1768329854353,6.98577795,143.15,143.11,0.66377388]
[1768329855170,24.44997634,143.15,143.11,0.66377388]
[1768329856074,24.44997634,143.15,143.1,2.96833015]
[1768329857057,24.44997634,143.15,143.11,0.71652082]
[1768329857557,26.70178567,143.15,143.09,2.25180933]
[1768329857750,24.44997634,143.15,143.09,2.96833015]
[1768329857951,24.44997634,143.15,143.1,2.25180933]
[1768329858473,6.98577795,143.15,143.11,0.71652082]
[1768329858649,19.72540081,143.16,143.12,2.96833015]
[1768329859450,19.72540081,143.16,143.13,0.71652082]
[1768329862052,39.44018862,143.16,143.1,0.71652082]
[1768329862254,39.44018862,143.16,143.11,0.71652082]
[1768329862959,39.44018862,143.16,143.1,2.25180933]
[1768329865181,37.18837929,143.16,143.11,2.96833015]
[1768329865367,37.18837929,143.16,143.11,2.25180933]
[1768329865771,37.18837929,143.16,143.1,7.70451865]
[1768329865772,39.44018862,143.16,143.1,2.96833015]
[1768329867084,39.44018862,143.16,143.11,0.71652082]
[1768329867766,37.18837929,143.16,143.11,0.71652082]
[1768329867964,39.44018862,143.16,143.11,0.71652082]
[1768329869900,37.18837929,143.16,143.11,0.71652082]
[1768329870188,37.18837929,143.16,143.12,0.71652082]
[1768329871385,39.44018862,143.16,143.11,0.71652082]
[1768329872074,37.18837929,143.16,143.11,2.96833015]
[1768329874200,37.18837929,143.16,143.11,0.71652082]
[1768329874569,39.44018862,143.16,143.11,0.71652082]
[1768329876792,37.18837929,143.16,143.11,2.96833015]
[1768329876985,37.18837929,143.16,143.12,0.68831718]
[1768329876986,12.74,143.16,143.12,0.68831718]
[1768329877191,111.1848679,143.17,143.13,0.68831718]
[1768329878298,2.25180933,143.16,143.11,0.68831718]
[1768329879599,130.89843597,143.17,143.11,0.68831718]
[1768329880104,6.98567935,143.15,143.11,0.68831718]
[1768329880902,6.98567935,143.15,143.12,0.68831718]
[1768329882002,6.98519139,143.16,143.12,0.68831718]
[1768329883881,9.23700072,143.16,143.12,0.68831718]
[1768329884310,6.98519139,143.16,143.12,0.68831718]
[1768329884513,5.21977467,143.15,143.12,0.68831718]
[1768329884811,2.25180933,143.15,143.1,0.68831718]
[1768329885113,2.25180933,143.15,143.09,0.68831718]
[1768329885496,2.25180933,143.15,143.1,0.68831718]
[1768329885698,26.6999792,143.16,143.1,0.68831718]
[1768329886004,5.22001904,143.15,143.1,0.68831718]
[1768329886208,26.6999792,143.16,143.11,0.68831718]
[1768329886410,5.22349144,143.15,143.11,0.68831718]
[1768329886708,26.6999792,143.16,143.11,0.68831718]
[1768329887011,6.98616738,143.14,143.11,0.68831718]
[1768329888111,6.98567935,143.15,143.11,0.68831718]
[1768329889191,5.227932,143.14,143.11,0.68831718]
[1768329889496,9.23748868,143.15,143.11,0.68831718]
[1768329889695,5.22793766,143.14,143.11,0.68831718]
[1768329889906,9.23748868,143.15,143.11,0.68831718]
[1768329890222,5.22793328,143.14,143.11,0.68831718]
[1768329890386,6.98567935,143.15,143.11,0.68831718]
[1768329890590,5.22832948,143.14,143.11,0.68831718]
[1768329890790,6.98567935,143.15,143.11,0.68831718]
[1768329890990,5.22832948,143.14,143.11,0.68831718]
[1768329891191,6.98567935,143.15,143.11,0.68831718]
[1768329891403,5.22940708,143.14,143.11,0.68831718]
[1768329891617,6.98567935,143.15,143.11,0.68831718]
[1768329891908,5.2294058,143.14,143.11,0.68831718]
[1768329892114,6.98567935,143.15,143.11,0.68831718]
[1768329892430,5.23027188,143.14,143.11,0.68831718]
[1768329892616,6.98621383,143.14,143.11,0.68831718]
[1768329892821,9.23802316,143.14,143.11,0.68831718]
[1768329894218,2.25180933,143.12,143.1,0.68831718]
[1768329895008,9.23801306,143.14,143.1,0.68831718]
[1768329895905,6.98620373,143.14,143.1,0.68831718]
[1768329896912,2.25180933,143.11,143.06,0.68831718]
[1768329897116,2.25180933,143.1,143.06,0.68831718]
[1768329898796,2.25180933,143.1,143.07,0.68831718]
[1768329898797,9.24006136,143.1,143.07,0.68831718]
[1768329899412,10.50355971,143.1,143.07,0.68831718]
[1768329900724,1e-08,143.1,143.07,0.68831718]
[1768329901599,30.20808349,143.12,143.07,0.68831718]
[1768329901799,5.22623012,143.11,143.08,0.68831718]
[1768329902009,10.50049907,143.16,143.08,0.68831718]
[1768329902318,3.51530768,143.13,143.08,0.68831718]
[1768329902511,10.50049907,143.16,143.08,0.68831718]
[1768329902712,3.51530768,143.13,143.08,0.68831718]
[1768329903301,3.51530768,143.11,143.06,0.68831718]
[1768329903506,3.51530768,143.09,143.06,0.68831718]
[1768329903899,24.45360375,143.13,143.06,0.68831718]
[1768329904206,3.51530768,143.09,143.06,0.68831718]
[1768329907127,10.5036436,143.1,143.06,0.68831718]
[1768329907324,6.98736545,143.12,143.08,0.71026766]
[1768329907529,6.98665548,143.13,143.08,0.71026766]
[1768329907736,3.51530768,143.12,143.08,0.71026766]
[1768329908236,3.51530768,143.12,143.09,0.71026766]
[1768329908608,6.98665548,143.13,143.09,0.71026766]
[1768329908808,111.18628523,143.14,143.09,0.71026766]
[1768329909023,114.70159291,143.14,143.09,0.71026766]
[1768329909526,104.2,143.14,143.09,0.71026766]
[1768329909730,10.50134072,143.15,143.1,0.71026766]
[1768329910314,10.50134072,143.15,143.11,0.71026766]
[1768329910315,6.98603304,143.15,143.11,0.71026766]
[1768329910619,10.50134072,143.15,143.11,0.71026766]
[1768329910825,3.51530768,143.13,143.09,0.71026766]
[1768329911939,10.50203056,143.13,143.09,0.71026766]
[1768329912815,6.98672288,143.13,143.09,0.71026766]
[1768329914139,10.50203056,143.13,143.09,0.71026766]
[1768329915326,10.50161265,143.14,143.1,0.71026766]
[1768329915532,6.98630497,143.14,143.1,0.71026766]
[1768329916324,10.50114293,143.15,143.11,0.71026766]
[1768329916635,3.51530768,143.15,143.11,0.71026766]
[1768329916830,30.20247967,143.17,143.11,0.71026766]
[1768329917032,3.51530768,143.15,143.11,0.71026766]
[1768329918342,10.50101014,143.15,143.11,0.71026766]
[1768329918840,6.98570246,143.15,143.11,0.71026766]
[1768329919028,6.98470349,143.17,143.13,0.65989333]
[1768329919207,6.98435409,143.18,143.14,0.65989333]
[1768329919413,5.21917155,143.17,143.14,0.65989333]
[1768329919724,6.98435409,143.18,143.14,0.65989333]
[1768329919920,5.21916589,143.17,143.15,0.65989333]
[1768329920114,10.49865057,143.2,143.15,0.65989333]
[1768329920837,6.98334289,143.2,143.15,4.17520101]
[1768329921024,6.98334289,143.2,143.16,0.65989333]
[1768329921224,10.49865057,143.2,143.16,0.65989333]
[1768329921619,10.49865057,143.2,143.16,0.59989333]
[1768329922641,3.51530768,143.19,143.16,0.59989333]
[1768329923036,6.98334289,143.2,143.16,0.59989333]
[1768329923229,3.51530768,143.18,143.14,6.98600104]
[1768329923537,3.51530768,143.16,143.12,0.65989333]
[1768329924614,3.51530768,143.16,143.13,0.65989333]
[1768329927239,3.51530768,143.16,143.14,0.65989333]
[1768329927446,6.98430104,143.18,143.14,0.65989333]
[1768329927625,3.51530768,143.16,143.14,0.65989333]
[1768329928735,3.51530768,143.15,143.14,0.65989333]
[1768329929552,3.51530768,143.16,143.14,0.65989333]
[1768329930634,3.51530768,143.15,143.14,0.65989333]
[1768329930829,24.50304769,143.19,143.14,0.65989333]
[1768329931146,3.51530768,143.15,143.14,0.65989333]
[1768329931535,3.51530768,143.15,143.13,0.65989333]
[1768329931738,0.06,143.13,143.09,0.65989333]
[1768329931944,3.51530768,143.16,143.09,40.71541952]
[1768329932744,10.5000538,143.17,143.12,6.98714365]
[1768329933046,3.51530768,143.21,143.15,3.51530768]
[1768329933246,10.4979019,143.22,143.15,3.51530768]
[1768329933434,7.63705501,143.22,143.16,3.51530768]
[1768329933629,11.15236269,143.22,143.16,3.51530768]
[1768329933836,11.15236269,143.22,143.17,0.65989333]
[1768329934236,3.51530768,143.21,143.17,0.65989333]
[1768329934846,3.51530768,143.19,143.13,17.46558719]
[1768329935029,4.23911201,143.19,143.13,12.74]
[1768329935747,4.23911201,143.19,143.14,3.51530768]
[1768329936550,7.70802,143.18,143.13,12.74]
[1768329936852,0.72380433,143.16,143.12,0.67010667]
[1768329937160,4.23911201,143.16,143.12,0.67010667]
[1768329937533,3.51530768,143.16,143.12,0.67010667]
[1768329938139,3.51530768,143.17,143.14,0.67010667]
[1768329938338,3.51530768,143.17,143.14,0.61010667]
[1768329938549,10.50031407,143.17,143.14,0.61010667]
[1768329938739,7.70816367,143.18,143.14,0.61010667]
[1768329939055,7.70804442,143.18,143.14,4.12541435]
[1768329939261,7.70804442,143.18,143.14,0.61010667]
[1768329940058,11.2233521,143.18,143.14,0.61010667]
[1768329940252,7.70804442,143.18,143.14,0.61010667]
[1768329940430,7.70770647,143.19,143.14,11.11141678]
[1768329940630,7.70770647,143.19,143.15,3.51530768]
[1768329940930,0.72380433,143.18,143.14,11.11141678]
[1768329941243,23.9625211,143.2,143.15,0.61010667]
[1768329941432,11.2225211,143.2,143.16,0.61010667]
[1768329941630,11.22202498,143.21,143.17,0.61010667]
[1768329941954,7.7067173,143.21,143.17,4.12541435]
[1768329942143,0.72380433,143.2,143.17,3.51530768]
[1768329942756,0.72380433,143.2,143.16,4.12541435]
[1768329943136,0.72380433,143.2,143.17,3.51530768]
[1768329943343,0.72380433,143.25,143.2,0.61010667]
[1768329943653,0.72380433,143.25,143.21,3.51530768]
[1768329943654,7.70478863,143.25,143.21,3.51530768]
[1768329943827,0.72380433,143.24,143.21,3.51530768]
[1768329944258,0.72380433,143.24,143.18,12.74]
[1768329944431,0.72380433,143.24,143.2,3.51530768]
[1768329944633,6.9809843,143.25,143.2,3.51530768]
[1768329945039,7.70478863,143.25,143.2,3.51530768]
[1768329945452,7.70478863,143.25,143.2,4.06541435]
[1768329945761,7.70478863,143.25,143.21,3.51530768]
[1768329946255,7.70517042,143.24,143.21,3.51530768]
[1768329946443,0.72380433,143.23,143.21,3.51530768]
[1768329947146,0.72380433,143.23,143.2,3.51530768]
[1768329947461,0.72380433,143.23,143.19,3.51530768]
[1768329947837,0.72380433,143.23,143.19,4.06541435]
[1768329950456,0.72380433,143.23,143.19,11.04909708]
[1768329950962,0.72380433,143.23,143.2,3.51530768]
[1768329951160,0.72380433,143.23,143.19,7.5337894]
[1768329951464,7.70559685,143.23,143.2,3.51530768]
[1768329952260,0.72380433,143.22,143.18,20.27425527]
[1768329952435,0.72380433,143.22,143.2,3.51530768]
[1768329952632,27.94811745,143.25,143.2,3.51530768]
[1768329952837,0.72380433,143.24,143.2,3.51530768]
[1768329953148,0.72380433,143.24,143.2,4.06541435]
[1768329953341,0.72380433,143.25,143.21,4.06541435]
[1768329953733,0.72380433,143.25,143.21,3.51530768]
[1768329953936,0.72380433,143.25,143.18,20.27411139]
[1768329953937,0.72380433,143.24,143.18,20.27411139]
[1768329954158,0.72380433,143.23,143.19,3.51530768]
[1768329954350,0.72380433,143.23,143.19,4.06541435]
[1768329956040,7.7060536,143.23,143.19,4.06541435]
[1768329957550,0.72380433,143.22,143.17,3.51530768]
[1768329957952,0.72380433,143.22,143.17,4.06541435]
[1768329958553,6.9827526,143.21,143.17,4.06541435]
[1768329958943,6.9827526,143.21,143.18,3.51530768]
[1768329960066,6.9827526,143.21,143.17,7.53473889]
[1768329961463,9.22874209,143.21,143.17,0.55010667]
[1768329961671,6.9827526,143.21,143.17,0.55010667]
[1768329962764,9.22874209,143.21,143.17,0.55010667]
[1768329963871,6.9827526,143.21,143.17,7.53464117]
[1768329964169,9.95254642,143.21,143.17,7.53464117]
[1768329965170,7.70655693,143.21,143.17,7.53464117]
[1768329965356,7.70655693,143.21,143.17,0.55010667]
[1768329965559,7.70655693,143.21,143.15,20.2756238]
[1768329965560,0.70691322,143.19,143.15,20.2756238]
[1768329965864,2.95290271,143.19,143.15,13.29010667]
[1768329966268,2.24598949,143.16,143.12,6.98704726]
[1768329966575,0.70691322,143.16,143.11,2.79609616]
[1768329966750,0.70691322,143.16,143.12,0.55010667]
[1768329966952,2.95290271,143.17,143.12,0.55010667]
[1768329967357,37.1796341,143.21,143.14,0.55010667]
[1768329967358,7.6910785,143.19,143.14,0.55010667]
[1768329967563,2.95290271,143.18,143.14,0.55010667]
[1768329969153,9.93725447,143.18,143.14,0.55010667]
[1768329971242,5.20748826,143.17,143.14,0.55010667]
[1768329971571,9.93725447,143.18,143.14,0.55010667]
[1768329971767,5.20754384,143.17,143.14,0.55010667]
[1768329971959,9.93725447,143.18,143.14,0.55010667]
[1768329972161,5.2075434,143.17,143.14,0.55010667]
[1768329972355,2.95290271,143.2,143.16,0.55010667]
[1768329972558,5.20736443,143.19,143.16,2.79609616]
[1768329972770,9.93533016,143.22,143.17,0.55010667]
[1768329972957,5.20652429,143.21,143.17,0.55010667]
[1768329973156,5.20652429,143.2,143.17,0.55010667]
[1768329973378,9.93533016,143.22,143.17,7.53469194]
[1768329973673,5.20681704,143.21,143.17,7.53469194]
[1768329973874,5.20681704,143.2,143.17,7.53469194]
[1768329974074,9.93533016,143.22,143.17,7.53469194]
[1768329974279,5.20681167,143.21,143.17,7.53469194]
[1768329974578,9.93533016,143.22,143.18,0.55010667]
[1768329974579,5.20681167,143.2,143.18,0.55010667]
[1768329974878,0.70691322,143.24,143.2,0.55010667]
[1768329975049,0.70691322,143.23,143.18,2.79609616]
[1768329975252,0.70691322,143.23,143.19,2.24598949]
[1768329975451,0.70691322,143.23,143.2,2.24598949]
[1768329975974,0.70691322,143.23,143.19,2.24598949]
[1768329976278,0.70691322,143.23,143.17,24.44634401]
[1768329976461,0.70691322,143.23,143.19,9.22957263]
[1768329976778,0.70691322,143.23,143.2,2.24598949]
[1768329977665,0.70691322,143.23,143.19,9.22957263]
[1768329977980,0.70691322,143.23,143.2,2.24598949]
[1768329979782,7.64698686,143.25,143.2,6.98320109]
[1768329979971,7.64698686,143.25,143.21,2.24598949]
[1768329981179,7.64698686,143.25,143.18,17.45995959]
[1768329981382,7.64698686,143.25,143.21,2.24598949]
[1768329981980,0.66613383,143.24,143.21,2.24598949]
[1768329982497,0.66613383,143.24,143.2,2.24598949]
[1768329983275,0.66613383,143.24,143.2,9.22921091]
[1768329983680,0.66613383,143.23,143.2,2.24598949]
[1768329983987,0.66613383,143.24,143.21,2.24598949]
[1768329985593,7.6465992,143.26,143.22,2.24598949]
[1768329986085,0.66613383,143.25,143.21,9.2286837]
[1768329986776,5.20855988,143.24,143.21,9.2286837]
[1768329986967,0.66613383,143.25,143.21,9.2286837]
[1768329987173,5.20848979,143.24,143.22,2.24598949]